fUST/lending_fUST_20250606
["ID","MTS","AMOUNT","RATE_DAILY","PERIOD"]
[364653474,1749183038771,-500.0,0.00022949,2]
[364653475,1749183038781,-440.0,0.00022949,2]
[364653476,1749183038791,-568.14,0.00022951,2]
[364653477,1749183038801,-412.44957625,0.00022954,2]
[364653478,1749183038810,-194.31162013,0.00023,7]
[364653479,1749183038820,-500.23,0.00023013,2]
[364653480,1749183038830,-493.83,0.00023013,2]
[364653481,1749183038841,-463.14,0.00023013,2]
[364653482,1749183038853,-440.0,0.00023013,2]
[364653483,1749183038864,-730.66,0.0002302,2]
[364653484,1749183038874,-1179.85,0.0002302,2]
[364653485,1749183038884,-440.0,0.0002302,2]
[364653486,1749183038894,-440.0,0.0002302,2]
[364653487,1749183038903,-1142.57,0.00023021,2]
[364653488,1749183038913,-440.0,0.00023021,2]
[364653489,1749183038923,-563.37,0.00023021,2]
[364653490,1749183038933,-1126.63,0.00023021,2]
[364653491,1749183038943,-440.0,0.00023021,2]
[364653492,1749183038952,-440.0,0.00023021,2]
[364653494,1749183038962,-440.0,0.00023021,2]
[364653496,1749183038971,-510.45,0.00023021,2]
[364653498,1749183038981,-696.32474896,0.00023038,8]
[364653500,1749183038990,-469.92768102,0.00023117,2]
[364653502,1749183039000,-207.4,0.00023117,2]
[364653504,1749183039011,-696.32474896,0.00023141,8]
[364653506,1749183039021,-440.0,0.00023222,2]
[364653508,1749183039030,-552.79,0.00023222,2]
[364653510,1749183039039,-440.0,0.00023222,2]
[364653512,1749183039048,-473.87,0.00023222,2]
[364653514,1749183039058,-440.0,0.00023222,2]
[364653516,1749183039067,-1262.35,0.00023222,2]
[364653518,1749183039076,-440.0,0.00023223,2]
[364653520,1749183039086,-410.0,0.00023223,2]
[364653522,1749183039095,-500.0,0.00023223,2]
[364653524,1749183039105,-440.0,0.00023223,2]
[364653527,1749183039115,-696.32474896,0.00023245,8]
[364653528,1749183039126,-500.23,0.00023287,2]
[364653530,1749183039135,-493.83,0.00023287,2]
[364653533,1749183039148,-463.14,0.00023287,2]
[364653535,1749183039158,-440.0,0.00023287,2]
[364653536,1749183039167,-500.0,0.00023293,2]
[364653538,1749183039177,-500.0,0.00023293,2]
[364653540,1749183039186,-500.0,0.00023293,2]
[364653543,1749183039196,-500.0,0.00023293,2]
[364653545,1749183039206,-500.0,0.00023293,2]
[364653546,1749183039215,-500.0,0.00023293,2]
[364653548,1749183039224,-500.0,0.00023293,2]
[364653550,1749183039234,-500.0,0.00023293,2]
[364653552,1749183039243,-434.99838115,0.00023293,2]
[364653555,1749183039254,-500.0,0.00023293,2]
[364653556,1749183039263,-500.0,0.00023293,2]
[364653559,1749183039273,-500.0,0.00023293,2]
[364653561,1749183039282,-500.0,0.00023293,2]
[364653563,1749183039290,-500.0,0.00023293,2]
[364653565,1749183039300,-500.0,0.00023293,2]
[364653566,1749183039310,-730.66,0.00023294,2]
[364653569,1749183039320,-1179.85,0.00023294,2]
[364653571,1749183039330,-440.0,0.00023294,2]
[364653573,1749183039339,-440.0,0.00023294,2]
[364653575,1749183039348,-1142.57,0.00023295,2]
[364653576,1749183039357,-350.0,0.00023295,2]
[364653578,1749183039367,-563.37,0.00023295,2]
[364653580,1749183039376,-1126.63,0.00023295,2]
[364653582,1749183039385,-440.0,0.00023295,2]
[364653585,1749183039398,-440.0,0.00023295,2]
[364653587,1749183039407,-440.0,0.00023295,2]
[364653588,1749183039417,-510.45,0.00023295,2]
[364653589,1749183039426,-1000.0,0.00023308,2]
[364653590,1749183039435,-236.33727295,0.00023308,2]
[364653591,1749183039444,-1046.69542658,0.00023348,2]
[364653592,1749183039453,-696.32474896,0.00023348,9]
[364653593,1749183039462,-600.0,0.00023371,2]
[364653594,1749183039471,-1000.0,0.00023402,2]
[364653595,1749183039480,-214.13172695,0.0002343,2]
[364653596,1749183039490,-696.32474896,0.00023452,9]
[364653597,1749183039499,-420.0,0.00023483,2]
[364653598,1749183039508,-545.36,0.00023487,3]
[364653599,1749183039517,-440.0,0.00023496,2]
[364653600,1749183039526,-552.79,0.00023496,2]
[364653601,1749183039535,-440.0,0.00023496,2]
[364653602,1749183039544,-473.87,0.00023496,2]
[364653603,1749183039553,-440.0,0.00023496,2]
[364653604,1749183039562,-1262.35,0.00023496,2]
[364653605,1749183039571,-440.0,0.00023497,2]
[364653606,1749183039580,-440.0,0.00023497,2]
[364653607,1749183039589,-500.0,0.00023498,2]
[364653608,1749183039598,-500.0,0.00023498,2]
[364653609,1749183039608,-904.29335519,0.000235,2]
[364653610,1749183039617,-572.1551899,0.00023534,2]
[364653611,1749183039626,-696.32474896,0.00023555,9]
[364653612,1749183039635,-500.23,0.00023561,2]
[364653613,1749183039645,-493.83,0.00023561,2]
[364653614,1749183039654,-463.14,0.00023561,2]
[364653615,1749183039663,-440.0,0.00023561,2]
[364653616,1749183039672,-1492.14914155,0.00023564,75]
[364653617,1749183039681,-730.66,0.00023568,2]
[364653618,1749183039690,-1179.85,0.00023568,2]
[364653619,1749183039699,-440.0,0.00023568,2]
[364653620,1749183039708,-440.0,0.00023568,2]
[364653621,1749183039717,-1142.57,0.00023569,2]
[364653622,1749183039726,-563.37,0.00023569,2]
[364653623,1749183039734,-1126.63,0.00023569,2]
[364653624,1749183039743,-440.0,0.00023569,2]
[364653625,1749183039752,-440.0,0.00023569,2]
[364653626,1749183039761,-440.0,0.00023569,2]
[364653627,1749183039770,-510.45,0.00023569,2]
[364653628,1749183039779,-161.2315508,0.00023578,2]
[364653629,1749183039788,-179.958363,0.00023578,2]
[364653630,1749183039797,-582.2407367,0.00023578,2]
[364653631,1749183039806,-151.0,0.00023597,2]
[364653632,1749183039815,-879.25887938,0.00023615,2]
[364653633,1749183039823,-254.32340032,0.00023624,2]
[364653634,1749183039832,-696.32474896,0.00023659,9]
[364653635,1749183039846,-696.32474896,0.00023762,9]
[364653636,1749183039856,-642.14385045,0.00023769,2]
[364653637,1749183039865,-437.53527064,0.0002377,2]
[364653638,1749183039874,-552.79,0.0002377,2]
[364653639,1749183039884,-440.0,0.0002377,2]
[364653640,1749183039894,-473.87,0.0002377,2]
[364653641,1749183039903,-161.54268993,0.0002377,2]
[364653642,1749183039912,-440.0,0.0002377,2]
[364653643,1749183039924,-1262.35,0.0002377,2]
[364653645,1749183039933,-440.0,0.00023771,2]
[364653646,1749183039942,-440.0,0.00023771,2]
[364653647,1749183039951,-405.0,0.00023773,2]
[364653648,1749183039960,-900.0,0.00023797,2]
[364653649,1749183039969,-1000.0,0.000238,6]
[364653650,1749183039978,-500.23,0.00023835,2]
[364653651,1749183039987,-493.83,0.00023835,2]
[364653652,1749183039996,-463.14,0.00023835,2]
[364653653,1749183040005,-440.0,0.00023835,2]
[364653655,1749183040015,-730.66,0.00023842,2]
[364653657,1749183040024,-1179.85,0.00023842,2]
[364653659,1749183040036,-440.0,0.00023842,2]
[364653660,1749183040045,-440.0,0.00023842,2]
[364653662,1749183040055,-1142.57,0.00023843,2]
[364653663,1749183040064,-563.37,0.00023843,2]
[364653664,1749183040074,-1126.63,0.00023843,2]
[364653666,1749183040083,-440.0,0.00023843,2]
[364653668,1749183040093,-440.0,0.00023843,2]
[364653670,1749183040102,-440.0,0.00023843,2]
[364653672,1749183040111,-510.45,0.00023843,2]
[364653673,1749183040122,-1004.36163096,0.00023856,2]
[364653674,1749183040131,-353.749358,0.00023856,3]
[364653676,1749183040141,-696.32474896,0.00023866,10]
[364653677,1749183040150,-436.87688164,0.000239,2]
[364653678,1749183040159,-1500.0,0.0002395,2]
[364653679,1749183040169,-696.32474896,0.00023969,10]
[364653680,1749183040177,-195.0,0.00024,10]
[364653681,1749183040187,-195.0,0.00024,10]
[364653682,1749183040196,-552.79,0.00024044,2]
[364653683,1749183040207,-440.0,0.00024044,2]
[364653684,1749183040221,-473.87,0.00024044,2]
[364653685,1749183040231,-440.0,0.00024044,2]
[364653686,1749183040241,-1262.35,0.00024044,2]
[364653687,1749183040251,-440.0,0.00024045,2]
[364653688,1749183040260,-440.0,0.00024045,2]
[364653689,1749183040270,-383.00638471,0.00024046,3]
[364653690,1749183040280,-696.32474896,0.00024072,10]
[364653691,1749183040289,-2000.0,0.000241,7]
[364653692,1749183040298,-500.23,0.00024109,2]
[364653693,1749183040308,-493.83,0.00024109,2]
[364653694,1749183040317,-463.14,0.00024109,2]
[364653695,1749183040326,-440.0,0.00024109,2]
[364653696,1749183040335,-730.66,0.00024116,2]
[364653697,1749183040345,-1179.85,0.00024116,2]
[364653698,1749183040354,-440.0,0.00024116,2]
[364653699,1749183040364,-440.0,0.00024116,2]
[364653700,1749183040373,-1142.57,0.00024117,2]
[364653701,1749183040382,-563.37,0.00024117,2]
[364653702,1749183040490,-1126.63,0.00024117,2]
[364653703,1749183040500,-440.0,0.00024117,2]
[364653704,1749183040510,-440.0,0.00024117,2]
[364653705,1749183040519,-440.0,0.00024117,2]
[364653706,1749183040529,-510.45,0.00024117,2]
[364653707,1749183040538,-800.0,0.00024152,2]
[364653708,1749183040547,-696.32474896,0.00024176,10]
[364653709,1749183040557,-781.31,0.000242,7]
[364653710,1749183040566,-1492.14914155,0.00024251,78]
[364653711,1749183040576,-1688.96218428,0.00024251,2]
[364653713,1749183040585,-800.0,0.00024263,2]
[364653715,1749183040595,-696.32474896,0.00024279,10]
[364653717,1749183040604,-840.84,0.000243,2]
[364653718,1749183040613,-2000.0,0.000243,2]
[364653720,1749183040622,-176.30904852,0.000243,10]
[364653722,1749183040631,-150.0,0.00024315,2]
[364653724,1749183040640,-150.0,0.00024315,2]
[364653726,1749183040650,-709.0,0.00024315,2]
[364653728,1749183040660,-552.79,0.00024318,2]
[364653730,1749183040669,-440.0,0.00024318,2]
[364653731,1749183040679,-473.87,0.00024318,2]
[364653733,1749183040689,-440.0,0.00024318,2]
[364653734,1749183040699,-1262.35,0.00024318,2]
[364653736,1749183040709,-440.0,0.00024319,2]
[364653737,1749183040719,-440.0,0.00024319,2]
[364653739,1749183040728,-1743.0,0.00024343,3]
[364653741,1749183040738,-1027.63498759,0.00024343,3]
[364653743,1749183040747,-422.23145582,0.00024343,2]
[364653745,1749183040757,-225.23243492,0.00024344,2]
[364653747,1749183040767,-160.0,0.00024344,5]
[364653749,1749183040776,-151.0,0.00024345,7]
[364653751,1749183040785,-151.0,0.00024345,7]
[364653753,1749183040795,-151.0,0.00024345,7]
[364653755,1749183040804,-151.0,0.00024345,7]
[364653756,1749183040814,-247.38942,0.00024345,7]
[364653758,1749183040823,-151.0,0.00024348,7]
[364653759,1749183040832,-151.0,0.00024348,7]
[364653760,1749183040845,-151.0,0.00024348,7]
[364653762,1749183040854,-151.0,0.00024348,7]
[364653764,1749183040863,-151.0,0.00024348,7]
[364653765,1749183040872,-151.0,0.00024348,7]
[364653767,1749183040882,-151.0,0.00024348,7]
[364653768,1749183040892,-151.0,0.00024348,7]
[364653770,1749183040901,-151.0,0.00024348,7]
[364653772,1749183040911,-151.0,0.00024348,7]
[364653773,1749183040920,-231.297482,0.00024348,7]
[364653774,1749183040929,-151.0,0.00024348,7]
[364653775,1749183040938,-151.0,0.00024348,7]
[364653776,1749183040947,-151.0,0.00024348,7]
[364653777,1749183040957,-153.561152,0.00024348,7]
[364653778,1749183040966,-151.389825,0.00024348,7]
[364653779,1749183040975,-224.118567,0.00024348,7]
[364653780,1749183040984,-151.0,0.00024348,7]
[364653781,1749183040993,-224.118567,0.00024348,7]
[364653782,1749183041002,-151.0,0.00024348,7]
[364653783,1749183041011,-224.118567,0.00024348,7]
[364653784,1749183041022,-151.0,0.00024348,7]
[364653785,1749183041031,-224.11856,0.00024348,7]
[364653786,1749183041040,-151.0,0.00024348,7]
[364653787,1749183041050,-151.669595,0.00024348,7]
[364653788,1749183041059,-152.559669,0.00024348,7]
[364653789,1749183041069,-151.0,0.0002435,7]
[364653790,1749183041078,-151.0,0.0002435,7]
[364653791,1749183041087,-151.0,0.0002435,7]
[364653792,1749183041097,-151.0,0.0002435,7]
[364653793,1749183041106,-151.0,0.0002435,7]
[364653794,1749183041115,-180.749662,0.0002435,7]
[364653795,1749183041124,-151.0,0.0002435,7]
[364653796,1749183041133,-151.721634,0.0002435,7]
[364653797,1749183041145,-200.982712,0.0002435,7]
[364653798,1749183041160,-151.0,0.0002435,7]
[364653799,1749183041174,-151.993116,0.0002435,7]
[364653800,1749183041185,-154.710064,0.0002435,7]
[364653801,1749183041195,-165.630123,0.0002435,7]
[364653802,1749183041205,-12677.18918728,0.0002435,7]
[364653803,1749183041215,-151.0,0.0002435,7]
[364653804,1749183041225,-300.840392,0.0002435,7]
[364653805,1749183041234,-152.815808,0.0002435,7]
[364653806,1749183041244,-229.52673067,0.0002435,7]
[364653807,1749183041258,-152.270737,0.0002435,7]
[364653808,1749183041272,-560.573001,0.0002435,7]
[364653809,1749183041281,-560.573001,0.0002435,7]
[364653810,1749183041290,-560.573001,0.0002435,7]
[364653811,1749183041299,-560.573001,0.0002435,7]
[364653812,1749183041309,-560.573001,0.0002435,7]
[364653813,1749183041319,-560.573001,0.0002435,7]
[364653814,1749183041328,-560.573001,0.0002435,7]
[364653815,1749183041337,-560.573001,0.0002435,7]
[364653816,1749183041347,-560.573001,0.0002435,7]
[364653817,1749183041356,-560.573001,0.0002435,7]
[364653818,1749183041366,-560.573001,0.0002435,7]
[364653819,1749183041375,-560.573001,0.0002435,7]
[364653820,1749183041385,-560.573001,0.0002435,7]
[364653821,1749183041395,-560.573001,0.0002435,7]
[364653822,1749183041404,-560.573001,0.0002435,7]
[364653823,1749183041414,-560.573001,0.0002435,7]
[364653824,1749183041424,-560.573001,0.0002435,7]
[364653825,1749183041434,-560.573001,0.0002435,7]
[364653826,1749183041444,-560.573001,0.0002435,7]
[364653827,1749183041453,-560.572997,0.0002435,7]
[364653828,1749183041463,-156860.76286444,0.00024351,20]
[364653829,1749183041472,-1018982.37538177,0.00024351,7]
[364653830,1749183041514,-13488.95729111,0.00024351,7]
[364653831,1749183041526,-153373.27859174,0.00024351,7]
[364653832,1749183041539,-1956.0610393,0.00024351,7]
[364653833,1749183041552,-847.50656881,0.00024351,7]
[364653834,1749183041564,-300.0,0.00024351,7]
[364653835,1749183041576,-634.0,0.00024351,7]
[364653836,1749183041587,-1588.65078539,0.00024351,7]
[364653837,1749183041599,-1124.5076448,0.00024351,7]
[364653838,1749183041611,-377.0600867,0.00024351,7]
[364653874,1749183046450,-500.0,0.00021917,2]
[364653875,1749183046462,-5.44,0.00021917,2]
[364653876,1749183046472,-505.44,0.00022191,2]
[364653877,1749183046482,-198.94680776,0.00022465,2]
[364653878,1749183046493,-306.49319224,0.00022465,2]
[364653879,1749183046503,-505.44,0.00022739,2]
[364653880,1749183046513,-97.7104575,0.00023013,2]
[364653881,1749183046525,-407.7295425,0.00023013,2]
[364653882,1749183046535,-505.44,0.00023287,2]
[364653883,1749183046544,-505.44,0.00023561,2]
[364653884,1749183046554,-505.44,0.00023835,2]
[364653885,1749183046563,-505.44,0.00024109,2]
[364653886,1749183046573,-207.6,0.00024341,10]
[364653887,1749183046584,-14501.33313746,0.00024351,7]
[364653888,1749183046595,-2885.73319305,0.00024351,7]
[364653889,1749183048018,107616.01544696,0.00024658,120]
[364653890,1749183050192,1568.06416707,0.00024658,120]
[364653893,1749183712457,10000.0,0.00024658,120]
[364653894,1749183722374,10000.0,0.00024658,120]
[364653895,1749183744514,10000.0,0.00024658,120]
[364653896,1749183756024,5000.0,0.00024658,120]
[364653897,1749183770607,6090.0,0.00024658,120]
[364653898,1749183953126,-150.0,0.00019396,2]
[364653899,1749183953150,-159.03433248,0.000199,2]
[364653900,1749183953171,-160.0,0.00019999,2]
[364653901,1749183953193,-300.0,0.00019999,2]
[364653902,1749183953216,-300.0,0.00019999,2]
[364653903,1749183953237,-500.0,0.00019999,2]
[364653904,1749183953259,-326.11093124,0.00019999,2]
[364653905,1749183953280,-1912.01719466,0.0002,3]
[364653907,1749183993082,-300.0,0.00019999,2]
[364653908,1749183993104,-87.0,0.0002,3]
[364653909,1749184038128,-257.0,0.00019999,2]
[364653910,1749184038156,-204.43912134,0.0002,3]
[364653911,1749184044084,-221.42067098,0.0002,3]
[364653912,1749184050080,-181.14041102,0.0002,3]
[364653913,1749184051194,-513.02740028,0.0002,3]
[364653924,1749184069672,5744.67159204,0.00018,2]
[364653925,1749184069695,10955.72425,0.00018,2]
[364653926,1749184069719,7993.5567604,0.00018,2]
[364653927,1749184070587,2962.1674896,0.00019,2]
[364653928,1749184070610,1390.01724089,0.00019,2]
[364653929,1749184117860,150.0,0.00018827,2]
[364653930,1749184119425,165.63012207,0.0002,120]
[364653933,1749184184622,555.0,0.00024658,120]
[364653934,1749184191919,555.0,0.00024658,120]
[364653939,1749184203096,2490.88857142,0.0001552,2]
[364653940,1749184210456,555.0,0.00024658,120]
[364653941,1749184219883,555.0,0.00024658,120]
[364653984,1749184237509,-8743.75998313,0.0002,3]
[364654009,1749184238469,-47060.04279675,0.0002,3]
[364654010,1749184238524,-1174.95282108,0.0002,3]
[364654011,1749184238581,-102996.31219796,0.0002,3]
[364654012,1749184238591,-12677.18918728,0.0002,3]
[364654013,1749184238600,-561.57580389,0.0002,3]
[364654014,1749184238610,-2648.20401679,0.00020311,2]
[364654015,1749184238621,-900.0,0.00020515,2]
[364654016,1749184238630,-150.0,0.00020538,2]
[364654017,1749184238640,-781.31,0.000206,2]
[364654018,1749184238651,-220.63092354,0.000209,4]
[364654019,1749184238661,-15277.71212103,0.00021,7]
[364654020,1749184238670,-220.63092351,0.00021038,4]
[364654021,1749184238679,-220.63092351,0.00021176,4]
[364654022,1749184238689,-161.951493,0.00021259,2]
[364654023,1749184238698,-220.63092351,0.00021314,5]
[364654024,1749184238708,-212.976918,0.00021426,2]
[364654025,1749184238719,-160.0,0.00021426,2]
[364654026,1749184238728,-423.83542519,0.00021426,2]
[364654027,1749184238738,-160.0,0.00021426,2]
[364654028,1749184238748,-160.0,0.00021426,2]
[364654029,1749184238757,-160.0,0.00021426,2]
[364654030,1749184238767,-12677.18918728,0.0002143,2]
[364654031,1749184238776,-190.387855,0.0002143,2]
[364654032,1749184238785,-220.63092351,0.00021452,5]
[364654033,1749184238794,-182.53567895,0.00021525,2]
[364654034,1749184238805,-220.63092351,0.0002159,5]
[364654035,1749184238816,-160.0,0.0002161,2]
[364654036,1749184238825,-160.0,0.0002161,2]
[364654037,1749184238834,-900.0,0.00021611,2]
[364654038,1749184238843,-220.63092351,0.00021728,5]
[364654039,1749184238852,-420.0,0.00021777,2]
[364654040,1749184238862,-220.63092351,0.00021866,6]
[364654041,1749184238871,-440.0,0.00021917,2]
[364654042,1749184238881,-440.0,0.00021917,2]
[364654043,1749184238891,-440.0,0.00021917,2]
[364654044,1749184238902,-478.1225301,0.00021917,2]
[364654045,1749184238911,-440.0,0.00021917,2]
[364654046,1749184238920,-440.0,0.00021917,2]
[364654047,1749184238930,-440.0,0.00021917,2]
[364654048,1749184238939,-440.0,0.00021917,2]
[364654049,1749184238949,-440.0,0.00021917,2]
[364654050,1749184238958,-440.0,0.00021917,2]
[364654051,1749184238967,-435.57190713,0.00021917,2]
[364654052,1749184238976,-440.0,0.00021917,2]
[364654053,1749184238986,-440.0,0.00021917,2]
[364654054,1749184238995,-432.42090258,0.00021917,2]
[364654055,1749184239005,-440.0,0.00021917,2]
[364654056,1749184239014,-440.0,0.00021917,2]
[364654057,1749184239024,-220.63092351,0.00022003,6]
[364654058,1749184239033,-220.63092351,0.00022141,6]
[364654059,1749184239043,-890.05,0.00022189,2]
[364654060,1749184239052,-440.0,0.00022189,2]
[364654061,1749184239062,-709.42,0.00022189,2]
[364654062,1749184239071,-440.0,0.00022189,2]
[364654063,1749184239080,-440.0,0.00022189,2]
[364654064,1749184239089,-440.0,0.00022189,2]
[364654065,1749184239098,-440.0,0.00022189,2]
[364654066,1749184239107,-440.0,0.0002219,2]
[364654067,1749184239117,-516.75,0.0002219,2]
[364654068,1749184239126,-440.0,0.00022191,2]
[364654069,1749184239135,-440.0,0.00022191,2]
[364654070,1749184239145,-440.0,0.00022191,2]
[364654071,1749184239155,-440.0,0.00022191,2]
[364654072,1749184239164,-440.0,0.00022191,2]
[364654073,1749184239174,-440.0,0.00022191,2]
[364654074,1749184239184,-440.0,0.00022191,2]
[364654075,1749184239193,-440.0,0.00022191,2]
[364654076,1749184239204,-418.83315431,0.00022191,2]
[364654077,1749184239214,-440.0,0.00022191,2]
[364654078,1749184239223,-440.0,0.00022191,2]
[364654079,1749184239234,-160.0,0.00022195,2]
[364654080,1749184239243,-160.0,0.00022195,2]
[364654081,1749184239253,-842.5625,0.00022195,2]
[364654082,1749184239262,-229.52673067,0.00022195,2]
[364654083,1749184239272,-440.0,0.00022199,2]
[364654084,1749184239281,-431.42807953,0.00022199,2]
[364654085,1749184239291,-637.0,0.00022199,2]
[364654086,1749184239301,-161.369,0.00022199,2]
[364654087,1749184239310,-781.31,0.000222,7]
[364654088,1749184239320,-220.63092351,0.00022279,6]
[364654089,1749184239330,-220.63092351,0.00022417,7]
[364654090,1749184239339,-890.05,0.00022463,2]
[364654091,1749184239348,-440.0,0.00022463,2]
[364654092,1749184239358,-709.42,0.00022463,2]
[364654093,1749184239371,-440.0,0.00022463,2]
[364654094,1749184239383,-440.0,0.00022463,2]
[364654095,1749184239396,-440.0,0.00022463,2]
[364654096,1749184239410,-440.0,0.00022463,2]
[364654097,1749184239422,-450.43033951,0.00022464,2]
[364654098,1749184239434,-516.75,0.00022464,2]
[364654099,1749184239445,-300.0,0.00022465,2]
[364654100,1749184239457,-440.0,0.00022465,2]
[364654101,1749184239467,-440.0,0.00022465,2]
[364654102,1749184239480,-440.0,0.00022465,2]
[364654103,1749184239491,-440.0,0.00022465,2]
[364654104,1749184239502,-440.0,0.00022465,2]
[364654105,1749184239513,-440.0,0.00022465,2]
[364654106,1749184239524,-440.0,0.00022465,2]
[364654107,1749184239536,-440.0,0.00022465,2]
[364654108,1749184239548,-440.0,0.00022465,2]
[364654109,1749184239560,-431.66680214,0.00022472,2]
[364654110,1749184239572,-440.0,0.00022472,2]
[364654111,1749184239584,-151.32846532,0.00022472,2]
[364654112,1749184239596,-440.0,0.00022472,2]
[364654113,1749184239609,-440.0,0.00022472,2]
[364654114,1749184239622,-440.0,0.00022472,2]
[364654115,1749184239636,-946.76,0.00022472,2]
[364654116,1749184239647,-453.58891154,0.00022472,2]
[364654117,1749184239659,-440.0,0.00022472,2]
[364654118,1749184239671,-637.0,0.00022473,2]
[364654119,1749184239683,-12675.69866947,0.000225,60]
[364654120,1749184239694,-220.63092351,0.00022555,7]
[364654121,1749184239705,-150.0,0.00022558,2]
[364654122,1749184239716,-220.63092351,0.00022693,7]
[364654123,1749184239726,-6057.17041412,0.000227,2]
[364654124,1749184239737,-900.0,0.00022707,2]
[364654125,1749184239748,-890.05,0.00022737,2]
[364654126,1749184239759,-440.0,0.00022737,2]
[364654127,1749184239771,-709.42,0.00022737,2]
[364654128,1749184239781,-440.0,0.00022737,2]
[364654129,1749184239792,-440.0,0.00022737,2]
[364654130,1749184239804,-440.0,0.00022737,2]
[364654131,1749184239814,-516.75,0.00022738,2]
[364654132,1749184239826,-440.0,0.00022739,2]
[364654133,1749184239836,-440.0,0.00022739,2]
[364654134,1749184239847,-440.0,0.00022739,2]
[364654135,1749184239859,-440.0,0.00022739,2]
[364654136,1749184239869,-440.0,0.00022739,2]
[364654137,1749184239881,-440.0,0.00022739,2]
[364654138,1749184239891,-440.0,0.00022739,2]
[364654139,1749184239904,-400.0,0.00022739,2]
[364654140,1749184239915,-440.0,0.00022746,2]
[364654142,1749184239926,-440.0,0.00022746,2]
[364654144,1749184239938,-440.0,0.00022746,2]
[364654145,1749184239949,-440.0,0.00022746,2]
[364654146,1749184239960,-946.76,0.00022746,2]
[364654147,1749184239972,-440.0,0.00022746,2]
[364654148,1749184239984,-637.0,0.00022747,2]
[364654149,1749184239996,-220.63092351,0.00022831,8]
[364654150,1749184240008,-426.75772975,0.000229,2]
[364654151,1749184240019,-220.63092351,0.00022969,8]
[364654152,1749184240031,-643.82978831,0.00022973,2]
[364654153,1749184240043,-500.0,0.00022999,2]
[364654154,1749184240053,-214264.66747582,0.00023,2]
[364654155,1749184240063,-67285.37851602,0.00023,2]
[364654156,1749184240074,-628.98551686,0.00023,20]
[364654157,1749184240084,-229.52673067,0.00023,3]
[364654158,1749184240093,-3166.80684524,0.00023,2]
[364654159,1749184240103,-10022.3948716,0.00023,2]
[364654160,1749184240114,-1327.39687771,0.00023,2]
[364654161,1749184240124,-890.05,0.00023011,2]
[364654162,1749184240137,-440.0,0.00023011,2]
[364654163,1749184240150,-709.42,0.00023011,2]
[364654164,1749184240162,-440.0,0.00023011,2]
[364654165,1749184240173,-440.0,0.00023011,2]
[364654166,1749184240185,-399.27533062,0.00023011,2]
[364654167,1749184240195,-516.75,0.00023012,2]
[364654168,1749184240208,-440.0,0.00023013,2]
[364654169,1749184240218,-440.0,0.00023013,2]
[364654170,1749184240229,-440.0,0.00023013,2]
[364654171,1749184240241,-440.0,0.00023013,2]
[364654172,1749184240253,-440.0,0.00023013,2]
[364654173,1749184240264,-440.0,0.00023013,2]
[364654174,1749184240275,-440.0,0.00023013,2]
[364654175,1749184240287,-440.0,0.0002302,2]
[364654176,1749184240298,-440.0,0.0002302,2]
[364654177,1749184240308,-440.0,0.0002302,2]
[364654178,1749184240319,-440.0,0.0002302,2]
[364654179,1749184240329,-946.76,0.0002302,2]